Workbook

Sheet Title&Introduction

Sheet StartHere
A4: Local Parameters
A5: Patm | B5: 101 | C5: kPa
A6: O2 | B6: 21 | C6: kPa
A8: Options | E8: Limiting Factor 1 | F8: Limiting Factor 2 | G8: Limiting Factor 3
A9: Group data for analysis? | B9: Yes | D9: Limiting Criteria (Ci in Pa): | E9: 20 | F9: 30 | G9: 50
A12: Choose units for Ci: | B12: Ci (ppm)
F13: =IF($B$9="No","","Assign a column letter to each considered group level (maximum: 6 group levels)!") -> Assign a column letter to each considered group level (maximum: 6 group levels)!
A14: Indicate below columns in sheet "Data" for required inputs variables: | F14: =IF($B$9="No",""," Leave blank unusued group levels!") -> Leave blank unusued group levels!
B15: Aleaf | C15: Tleaf | D15: Ci | E15: Observation Nos. | F15: =IF($B$9="No","","Group Level 1") -> Group Level 1 | G15: =IF($B$9="No","","Group Level 2") -> Group Level 2 | H15: =IF($B$9="No","","Group Level 3") -> Group Level 3 | I15: =IF($B$9="No","","Group Level 4") -> Group Level 4 | J15: =IF($B$9="No","","Group Level 5") -> Group Level 5 | K15: =IF($B$9="No","","Group Level 6") -> Group Level 6
B16: (μmol m-2 s-1 ) | C16: (ºC) | D16: (ppm or Pa)
A17: Column (letter) | B17: H | C17: J | D17: I | E17: G | F17: A | G17: B | H17: C | I17: D | J17: E | K17: F
A19: In sheet "Data", delete data? | B19: No | C19: =IF(B19="Yes"," Attention you chose to delete data in sheet ""Data""!","") -> 
A22: Constants for Assimilation Model
B23: @ 25°C | C23: c | D23: ΔΗa | E23: ΔΗd | F23: ΔS
D24: (kJ mol-1) | E24: (kJ mol-1) | F24: (kJ K-1 mol-1)
A25: Kc (Pa) | B25: =EXP(C25-(D25/(0.008314*(273.15+25)))) -> 27.24 | C25: 35.98 | D25: 80.99
A26: Ko (kPa) | B26: =EXP(C26-(D26/(0.008314*(273.15+25)))) -> 16.58 | C26: 12.38 | D26: 23.72
A27: Γ∗ (Pa) (with O = 21 kPa) | B27: 3.74 | C27: 11.19 | D27: 24.46
A28: Vcmax | B28: 1.0 | C28: 26.36 | D28: 65.33
A29: J | B29: 1.0 | C29: 17.71 | D29: 43.90
A30: TPU | B30: =EXP(C30-(D30/(0.008314*(273.15+25))))/(1+EXP(F30*(273.15+25)-E30)/(0.008314*(273.15+25))) -> 1.0 | C30: 21.46 | D30: 53.10 | E30: 201.80 | F30: 0.65
A31: Rd | B31: 1.0 | C31: 18.72 | D31: 46.39
A32: gm | B32: =EXP(C32-(D32/(0.008314*(273.15+25))))/(1+EXP(F32*(273.15+25)-E32)/(0.008314*(273.15+25))) -> 1.0 | C32: 20.01 | D32: 49.60 | E32: 437.40 | F32: 1.40
A34: Estimates for Solver
A35: Parameters to fit | B35: Estimates for Solver @ T leaf | C35: Parameter units
A37: Vcmax | B37: 150.0 | C37: μmol m-2 s-1
A38: J | B38: 180.0 | C38: μmol m-2 s-1
A39: TPU | B39: 12.0 | C39: μmol m-2 s-1
A40: Rd | B40: 3.0 | C40: μmol m-2 s-1
A41: gm | B41: 3.0 | C41: μmol m-2 s-1 Pa-1

Sheet Data
B6: Place your data below (starting in any line after these comments), and you may create one or two title lines (column titles may not start with a number!). However, you must present the variables by columns (starting in column A) and without blank columns. Only columns corresponding to levels and input variables will be copied to sheet "Results",and displayed along with the output variables. You already told the program which columns the required input variables are placed in. You are not allowed to write required input variables after column Z, but other variables, that are not used, may be placed thereafter (until column AZ). All columns that contain members of considered group levels (if any), must be sorted in ascending order. Observations within each series (i.e., each A/Ci curve) must also be sorted in ascending order (this is only to identify each A/Ci curve). Notice that if data are ungrouped, there will be one set of output variables for each series of observations, while grouped data will yield 1 set of output variables for each inner group, thus pooling multiple series of observations.
B10: After inserting data press the button "Step 2 of 2", above!
A11: Year | B11: DOY | C11: Tree | D11: Treatment | E11: Organ | F11: Position | G11: Obs | H11: Photo | I11: Ci | J11: Tleaf
A12: 2008 | B12: 1900-05-28 | C12: 1 | D12: Vertical | E12: Verdasca | F12: Interna | G12: 1 | H12: 13.9 | I12: 201 | J12: 26.07
A13: 2008 | B13: 1900-05-28 | C13: 1 | D13: Vertical | E13: Verdasca | F13: Interna | G13: 2 | H13: 8.39 | I13: 131 | J13: 25.84
A14: 2008 | B14: 1900-05-28 | C14: 1 | D14: Vertical | E14: Verdasca | F14: Interna | G14: 3 | H14: 5.07 | I14: 67.1 | J14: 25.74
A15: 2008 | B15: 1900-05-28 | C15: 1 | D15: Vertical | E15: Verdasca | F15: Interna | G15: 4 | H15: 1.34 | I15: 55.1 | J15: 25.84
A16: 2008 | B16: 1900-05-28 | C16: 1 | D16: Vertical | E16: Verdasca | F16: Interna | G16: 5 | H16: 14.8 | I16: 242 | J16: 25.49
A17: 2008 | B17: 1900-05-28 | C17: 1 | D17: Vertical | E17: Verdasca | F17: Interna | G17: 6 | H17: 22.6 | I17: 413 | J17: 25.18
A18: 2008 | B18: 1900-05-28 | C18: 1 | D18: Vertical | E18: Verdasca | F18: Interna | G18: 7 | H18: 26 | I18: 653 | J18: 24.96
A19: 2008 | B19: 1900-05-28 | C19: 1 | D19: Vertical | E19: Verdasca | F19: Interna | G19: 8 | H19: 2.69E+01 | I19: 1220 | J19: 24.78
A20: 2008 | B20: 1900-05-28 | C20: 1 | D20: Vertical | E20: Verdasca | F20: Interna | G20: 9 | H20: 2.82E+01 | I20: 1740 | J20: 24.79
A21: 2008 | B21: 1900-05-28 | C21: 3 | D21: Máxima | E21: Verdasca | F21: Externa | G21: 1 | H21: 16 | I21: 153 | J21: 22.28
A22: 2008 | B22: 1900-05-28 | C22: 3 | D22: Máxima | E22: Verdasca | F22: Externa | G22: 2 | H22: 9.77 | I22: 55.7 | J22: 21.85
A23: 2008 | B23: 1900-05-28 | C23: 3 | D23: Máxima | E23: Verdasca | F23: Externa | G23: 3 | H23: 6.33 | I23: 55.7 | J23: 21.87
A24: 2008 | B24: 1900-05-28 | C24: 3 | D24: Máxima | E24: Verdasca | F24: Externa | G24: 4 | H24: 1.96 | I24: 39 | J24: 21.92
A25: 2008 | B25: 1900-05-28 | C25: 3 | D25: Máxima | E25: Verdasca | F25: Externa | G25: 5 | H25: 16.2 | I25: 82.4 | J25: 21.98
A26: 2008 | B26: 1900-05-28 | C26: 3 | D26: Máxima | E26: Verdasca | F26: Externa | G26: 6 | H26: 24.3 | I26: 223 | J26: 21.93
A27: 2008 | B27: 1900-05-28 | C27: 3 | D27: Máxima | E27: Verdasca | F27: Externa | G27: 7 | H27: 27.1 | I27: 472 | J27: 21.92
A28: 2008 | B28: 1900-05-28 | C28: 3 | D28: Máxima | E28: Verdasca | F28: Externa | G28: 8 | H28: 2.75E+01 | I28: 962 | J28: 21.79
A29: 2008 | B29: 1900-05-28 | C29: 3 | D29: Máxima | E29: Verdasca | F29: Externa | G29: 9 | H29: 2.85E+01 | I29: 1490 | J29: 21.82
A30: 2008 | B30: 1900-05-28 | C30: 3 | D30: Máxima | E30: Verdasca | F30: Interna | G30: 1 | H30: 18.1 | I30: 222 | J30: 25.76
A31: 2008 | B31: 1900-05-28 | C31: 3 | D31: Máxima | E31: Verdasca | F31: Interna | G31: 2 | H31: 10.5 | I31: 144 | J31: 25.71
A32: 2008 | B32: 1900-05-28 | C32: 3 | D32: Máxima | E32: Verdasca | F32: Interna | G32: 3 | H32: 6.69 | I32: 102 | J32: 25.76
A33: 2008 | B33: 1900-05-28 | C33: 3 | D33: Máxima | E33: Verdasca | F33: Interna | G33: 4 | H33: 1.74 | I33: 55.5 | J33: 25.78
A34: 2008 | B34: 1900-05-28 | C34: 3 | D34: Máxima | E34: Verdasca | F34: Interna | G34: 5 | H34: 18.3 | I34: 236 | J34: 25.69
A35: 2008 | B35: 1900-05-28 | C35: 3 | D35: Máxima | E35: Verdasca | F35: Interna | G35: 6 | H35: 27.1 | I35: 413 | J35: 25.46
A36: 2008 | B36: 1900-05-28 | C36: 3 | D36: Máxima | E36: Verdasca | F36: Interna | G36: 7 | H36: 29.9 | I36: 686 | J36: 25.12
A37: 2008 | B37: 1900-05-28 | C37: 3 | D37: Máxima | E37: Verdasca | F37: Interna | G37: 8 | H37: 3.09E+01 | I37: 1250 | J37: 25.22
A38: 2008 | B38: 1900-05-28 | C38: 3 | D38: Máxima | E38: Verdasca | F38: Interna | G38: 9 | H38: 3.10E+01 | I38: 1740 | J38: 25.32
A39: 2008 | B39: 1900-05-28 | C39: 7 | D39: Vertical | E39: Verdasca | F39: Externa | G39: 1 | H39: 9.18 | I39: 221 | J39: 22.27
A40: 2008 | B40: 1900-05-28 | C40: 7 | D40: Vertical | E40: Verdasca | F40: Externa | G40: 2 | H40: 5.61 | I40: 135 | J40: 22.18
A41: 2008 | B41: 1900-05-28 | C41: 7 | D41: Vertical | E41: Verdasca | F41: Externa | G41: 3 | H41: 3.61 | I41: 94.2 | J41: 22.05
A42: 2008 | B42: 1900-05-28 | C42: 7 | D42: Vertical | E42: Verdasca | F42: Externa | G42: 4 | H42: 1.12 | I42: 51.8 | J42: 21.88
A43: 2008 | B43: 1900-05-28 | C43: 7 | D43: Vertical | E43: Verdasca | F43: Externa | G43: 5 | H43: 10.9 | I43: 113 | J43: 21.76
A44: 2008 | B44: 1900-05-28 | C44: 7 | D44: Vertical | E44: Verdasca | F44: Externa | G44: 6 | H44: 17.7 | I44: 294 | J44: 21.78
A45: 2008 | B45: 1900-05-28 | C45: 7 | D45: Vertical | E45: Verdasca | F45: Externa | G45: 7 | H45: 22 | I45: 578 | J45: 21.72
A46: 2008 | B46: 1900-05-28 | C46: 7 | D46: Vertical | E46: Verdasca | F46: Externa | G46: 8 | H46: 2.52E+01 | I46: 1150 | J46: 21.6
A47: 2008 | B47: 1900-05-28 | C47: 7 | D47: Vertical | E47: Verdasca | F47: Externa | G47: 9 | H47: 2.60E+01 | I47: 1650 | J47: 21.35
A48: 2008 | B48: 1900-05-28 | C48: 7 | D48: Vertical | E48: Verdasca | F48: Interna | G48: 1 | H48: 12.2 | I48: 248 | J48: 20.99
A49: 2008 | B49: 1900-05-28 | C49: 7 | D49: Vertical | E49: Verdasca | F49: Interna | G49: 2 | H49: 7.72 | I49: 152 | J49: 21.18
A50: 2008 | B50: 1900-05-28 | C50: 7 | D50: Vertical | E50: Verdasca | F50: Interna | G50: 3 | H50: 4.97 | I50: 106 | J50: 21.25
A51: 2008 | B51: 1900-05-28 | C51: 7 | D51: Vertical | E51: Verdasca | F51: Interna | G51: 4 | H51: 1.49 | I51: 55.7 | J51: 21.36
A52: 2008 | B52: 1900-05-28 | C52: 7 | D52: Vertical | E52: Verdasca | F52: Interna | G52: 5 | H52: 13.6 | I52: 244 | J52: 21.58
A53: 2008 | B53: 1900-05-28 | C53: 7 | D53: Vertical | E53: Verdasca | F53: Interna | G53: 6 | H53: 18.9 | I53: 438 | J53: 21.7
A54: 2008 | B54: 1900-05-28 | C54: 7 | D54: Vertical | E54: Verdasca | F54: Interna | G54: 7 | H54: 20.6 | I54: 728 | J54: 21.85
A55: 2008 | B55: 1900-05-28 | C55: 7 | D55: Vertical | E55: Verdasca | F55: Interna | G55: 8 | H55: 2.22E+01 | I55: 1300 | J55: 22.1
A56: 2008 | B56: 1900-05-28 | C56: 7 | D56: Vertical | E56: Verdasca | F56: Interna | G56: 9 | H56: 2.26E+01 | I56: 1800 | J56: 22.16
A57: 2008 | B57: 1900-05-28 | C57: 10 | D57: Máxima | E57: Verdasca | F57: Externa | G57: 1 | H57: 14.7 | I57: 234 | J57: 22.57
A58: 2008 | B58: 1900-05-28 | C58: 10 | D58: Máxima | E58: Verdasca | F58: Externa | G58: 2 | H58: 9.73 | I58: 142 | J58: 22.69
A59: 2008 | B59: 1900-05-28 | C59: 10 | D59: Máxima | E59: Verdasca | F59: Externa | G59: 3 | H59: 6.45 | I59: 97 | J59: 22.62
A60: 2008 | B60: 1900-05-28 | C60: 10 | D60: Máxima | E60: Verdasca | F60: Externa | G60: 4 | H60: 1.9 | I60: 53.8 | J60: 22.49
A61: 2008 | B61: 1900-05-28 | C61: 10 | D61: Máxima | E61: Verdasca | F61: Externa | G61: 5 | H61: 17.2 | I61: 225 | J61: 22.38
A62: 2008 | B62: 1900-05-28 | C62: 10 | D62: Máxima | E62: Verdasca | F62: Externa | G62: 6 | H62: 24.5 | I62: 401 | J62: 22.23
A63: 2008 | B63: 1900-05-28 | C63: 10 | D63: Máxima | E63: Verdasca | F63: Externa | G63: 7 | H63: 26 | I63: 681 | J63: 22.14
A64: 2008 | B64: 1900-05-28 | C64: 10 | D64: Máxima | E64: Verdasca | F64: Externa | G64: 8 | H64: 2.73E+01 | I64: 1280 | J64: 22.2
A65: 2008 | B65: 1900-05-28 | C65: 10 | D65: Máxima | E65: Verdasca | F65: Externa | G65: 9 | H65: 2.76E+01 | I65: 1750 | J65: 22.17
A66: 2008 | B66: 1900-05-28 | C66: 10 | D66: Máxima | E66: Verdasca | F66: Interna | G66: 1 | H66: 15.6 | I66: 231 | J66: 22.62
A67: 2008 | B67: 1900-05-28 | C67: 10 | D67: Máxima | E67: Verdasca | F67: Interna | G67: 2 | H67: 9.91 | I67: 136 | J67: 22.74
A68: 2008 | B68: 1900-05-28 | C68: 10 | D68: Máxima | E68: Verdasca | F68: Interna | G68: 3 | H68: 6.36 | I68: 94.5 | J68: 22.83
A69: 2008 | B69: 1900-05-28 | C69: 10 | D69: Máxima | E69: Verdasca | F69: Interna | G69: 4 | H69: 2.01 | I69: 53.6 | J69: 22.99
A70: 2008 | B70: 1900-05-28 | C70: 10 | D70: Máxima | E70: Verdasca | F70: Interna | G70: 5 | H70: 16.7 | I70: 224 | J70: 23.14
A71: 2008 | B71: 1900-05-28 | C71: 10 | D71: Máxima | E71: Verdasca | F71: Interna | G71: 6 | H71: 22.7 | I71: 415 | J71: 23.22
A72: 2008 | B72: 1900-05-28 | C72: 10 | D72: Máxima | E72: Verdasca | F72: Interna | G72: 7 | H72: 24.1 | I72: 700 | J72: 23.39
A73: 2008 | B73: 1900-05-28 | C73: 10 | D73: Máxima | E73: Verdasca | F73: Interna | G73: 8 | H73: 2.45E+01 | I73: 1280 | J73: 23.42
A74: 2008 | B74: 1900-05-28 | C74: 10 | D74: Máxima | E74: Verdasca | F74: Interna | G74: 9 | H74: 2.48E+01 | I74: 1780 | J74: 23.41
A75: 2008 | B75: 1900-05-28 | C75: 16 | D75: Máxima | E75: Verdasca | F75: Externa | G75: 1 | H75: 16.4 | I75: 222 | J75: 23.98
A76: 2008 | B76: 1900-05-28 | C76: 16 | D76: Máxima | E76: Verdasca | F76: Externa | G76: 2 | H76: 9.69 | I76: 135 | J76: 24.06
A77: 2008 | B77: 1900-05-28 | C77: 16 | D77: Máxima | E77: Verdasca | F77: Externa | G77: 3 | H77: 6.1 | I77: 94.3 | J77: 24
A78: 2008 | B78: 1900-05-28 | C78: 16 | D78: Máxima | E78: Verdasca | F78: Externa | G78: 4 | H78: 1.57 | I78: 56 | J78: 23.94
A79: 2008 | B79: 1900-05-28 | C79: 16 | D79: Máxima | E79: Verdasca | F79: Externa | G79: 5 | H79: 16.7 | I79: 229 | J79: 23.68
A80: 2008 | B80: 1900-05-28 | C80: 16 | D80: Máxima | E80: Verdasca | F80: Externa | G80: 6 | H80: 25.3 | I80: 389 | J80: 23.55
A81: 2008 | B81: 1900-05-28 | C81: 16 | D81: Máxima | E81: Verdasca | F81: Externa | G81: 7 | H81: 29.1 | I81: 642 | J81: 23.45
A82: 2008 | B82: 1900-05-28 | C82: 16 | D82: Máxima | E82: Verdasca | F82: Externa | G82: 8 | H82: 3.03E+01 | I82: 1120 | J82: 23.58
A83: 2008 | B83: 1900-05-28 | C83: 16 | D83: Máxima | E83: Verdasca | F83: Externa | G83: 9 | H83: 3.03E+01 | I83: 1690 | J83: 23.64

Sheet Results
BA1: 10
BA2: 12
CV10: Vcmax | CW10: J | CX10: TPU | CY10: Rd | CZ10: gm | DA10: Intercept | DB10: Slope | DC10: R-Squared | DD10: RMSE | GR10: Level 1 | GS10: Level 2 | GT10: Level 3 | GU10: Level 4 | GV10: Level 5 | GW10: Level 6 | GX10: Vcmax | GY10: J | GZ10: TPU | HA10: Rd | HB10: gm | HC10: Intercept | HD10: Slope | HE10: R-Squared | HF10: RMSE
A11: Year | B11: DOY | C11: Tree | D11: Treatment | E11: Organ | F11: Position | G11: Obs | H11: Photo | I11: Ci | J11: Tleaf | L11: Vcmax | M11: J | N11: TPU | O11: Rd | P11: gm | Q11: Intercept | R11: Slope | S11: R-Squared | T11: RMSE | CV11: 71.46574919 | CW11: 119.9857115 | CX11: 9.433333333 | CY11: 0.1 | CZ11: 30 | DA11: -0.763518854 | DB11: 1.030745479 | DC11: 0.9902137704 | DD11: 1.045765527 | GR11: 2008 | GS11: 28/05/1900 | GT11: 1 | GU11: Vertical | GV11: Verdasca | GW11: Interna | GX11: 71.46574919 | GY11: 119.9857115 | GZ11: 9.433333333 | HA11: 0.1 | HB11: 30 | HC11: -0.763518854 | HD11: 1.030745479 | HE11: 0.9902137704 | HF11: 1.045765527
A12: 2008 | B12: 1900-05-28 | C12: 1 | D12: Vertical | E12: Verdasca | F12: Interna | G12: 1 | H12: 13.9 | I12: 201 | J12: 26.07 | L12: 71.46574919 | M12: 119.9857115 | N12: 9.433333333 | O12: 0.1 | P12: 30 | Q12: -0.763518854 | R12: 1.030745479 | S12: 0.9902137704 | T12: 1.045765527 | CV12: 0 | CW12: 0 | CX12: 0 | CY12: 0 | CZ12: 0 | DA12: 0 | DB12: 0 | DC12: 0 | DD12: 0 | GR12: 2008 | GS12: 28/05/1900 | GT12: 3 | GU12: Máxima | GV12: Verdasca | GW12: Externa | GX12: 114.1104047 | GY12: 140.8897906 | GZ12: 9.366666666 | HA12: 0.1 | HB12: 30 | HC12: -3.334723082 | HD12: 1.102831752 | HE12: 0.934689637 | HF12: 3.555256794
A13: 2008 | B13: 1900-05-28 | C13: 1 | D13: Vertical | E13: Verdasca | F13: Interna | G13: 2 | H13: 8.39 | I13: 131 | J13: 25.84 | L13: 0 | M13: 0 | N13: 0 | O13: 0 | P13: 0 | Q13: 0 | R13: 0 | S13: 0 | T13: 0 | CV13: 0 | CW13: 0 | CX13: 0 | CY13: 0 | CZ13: 0 | DA13: 0 | DB13: 0 | DC13: 0 | DD13: 0 | GR13: 2008 | GS13: 28/05/1900 | GT13: 3 | GU13: Máxima | GV13: Verdasca | GW13: Interna | GX13: 87.82561302 | GY13: 143.4192238 | GZ13: 10.47595907 | HA13: 0.4778772092 | HB13: 30 | HC13: 0.01475352752 | HD13: 0.9992378939 | HE13: 0.9992378939 | HF13: 0.289809514
A14: 2008 | B14: 1900-05-28 | C14: 1 | D14: Vertical | E14: Verdasca | F14: Interna | G14: 3 | H14: 5.07 | I14: 67.1 | J14: 25.74 | L14: 0 | M14: 0 | N14: 0 | O14: 0 | P14: 0 | Q14: 0 | R14: 0 | S14: 0 | T14: 0 | CV14: 0 | CW14: 0 | CX14: 0 | CY14: 0 | CZ14: 0 | DA14: 0 | DB14: 0 | DC14: 0 | DD14: 0 | GR14: 2008 | GS14: 28/05/1900 | GT14: 7 | GU14: Vertical | GV14: Verdasca | GW14: Externa | GX14: 41.48351641 | GY14: 102.375719 | GZ14: 8.566666667 | HA14: 0.1 | HB14: 30 | HC14: 0.4029093453 | HD14: 0.8923871266 | HE14: 0.9415569707 | HF14: 1.965086291
A15: 2008 | B15: 1900-05-28 | C15: 1 | D15: Vertical | E15: Verdasca | F15: Interna | G15: 4 | H15: 1.34 | I15: 55.1 | J15: 25.84 | L15: 0 | M15: 0 | N15: 0 | O15: 0 | P15: 0 | Q15: 0 | R15: 0 | S15: 0 | T15: 0 | CV15: 0 | CW15: 0 | CX15: 0 | CY15: 0 | CZ15: 0 | DA15: 0 | DB15: 0 | DC15: 0 | DD15: 0 | GR15: 2008 | GS15: 28/05/1900 | GT15: 7 | GU15: Vertical | GV15: Verdasca | GW15: Interna | GX15: 43.76766632 | GY15: 97.70638074 | GZ15: 7.672425623 | HA15: 0.6372239143 | HB15: 14.58223703 | HC15: 0.09467276199 | HD15: 0.9884391923 | HE15: 0.994767214 | HF15: 0.5371220672
A16: 2008 | B16: 1900-05-28 | C16: 1 | D16: Vertical | E16: Verdasca | F16: Interna | G16: 5 | H16: 14.8 | I16: 242 | J16: 25.49 | L16: 0 | M16: 0 | N16: 0 | O16: 0 | P16: 0 | Q16: 0 | R16: 0 | S16: 0 | T16: 0 | CV16: 0 | CW16: 0 | CX16: 0 | CY16: 0 | CZ16: 0 | DA16: 0 | DB16: 0 | DC16: 0 | DD16: 0 | GR16: 2008 | GS16: 28/05/1900 | GT16: 10 | GU16: Máxima | GV16: Verdasca | GW16: Externa | GX16: 59.89983051 | GY16: 123.2651392 | GZ16: 9.183333333 | HA16: 0.1 | HB16: 30 | HC16: 0.02634000231 | HD16: 0.9973706247 | HE16: 0.9934336158 | HF16: 0.7421176369
A17: 2008 | B17: 1900-05-28 | C17: 1 | D17: Vertical | E17: Verdasca | F17: Interna | G17: 6 | H17: 22.6 | I17: 413 | J17: 25.18 | L17: 0 | M17: 0 | N17: 0 | O17: 0 | P17: 0 | Q17: 0 | R17: 0 | S17: 0 | T17: 0 | CV17: 0 | CW17: 0 | CX17: 0 | CY17: 0 | CZ17: 0 | DA17: 0 | DB17: 0 | DC17: 0 | DD17: 0 | GR17: 2008 | GS17: 28/05/1900 | GT17: 10 | GU17: Máxima | GV17: Verdasca | GW17: Interna | GX17: 63.04800501 | GY17: 116.8343676 | GZ17: 8.188888889 | HA17: 0.1 | HB17: 30 | HC17: -0.1310279104 | HD17: 1.005552984 | HE17: 0.9954701627 | HF17: 0.5505645487
A18: 2008 | B18: 1900-05-28 | C18: 1 | D18: Vertical | E18: Verdasca | F18: Interna | G18: 7 | H18: 26 | I18: 653 | J18: 24.96 | L18: 0 | M18: 0 | N18: 0 | O18: 0 | P18: 0 | Q18: 0 | R18: 0 | S18: 0 | T18: 0 | CV18: 0 | CW18: 0 | CX18: 0 | CY18: 0 | CZ18: 0 | DA18: 0 | DB18: 0 | DC18: 0 | DD18: 0 | GR18: 2008 | GS18: 28/05/1900 | GT18: 16 | GU18: Máxima | GV18: Verdasca | GW18: Externa | GX18: 72.75961995 | GY18: 137.1677194 | GZ18: 10.21622721 | HA18: 0.3450868504 | HB18: 13.99375018 | HC18: 0.007571882157 | HD18: 0.9993758551 | HE18: 0.9991039425 | HF18: 0.3096167897
A19: 2008 | B19: 1900-05-28 | C19: 1 | D19: Vertical | E19: Verdasca | F19: Interna | G19: 8 | H19: 2.69E+01 | I19: 1220 | J19: 24.78 | L19: 0 | M19: 0 | N19: 0 | O19: 0 | P19: 0 | Q19: 0 | R19: 0 | S19: 0 | T19: 0 | CV19: 0 | CW19: 0 | CX19: 0 | CY19: 0 | CZ19: 0 | DA19: 0 | DB19: 0 | DC19: 0 | DD19: 0
A20: 2008 | B20: 1900-05-28 | C20: 1 | D20: Vertical | E20: Verdasca | F20: Interna | G20: 9 | H20: 2.82E+01 | I20: 1740 | J20: 24.79 | L20: 0 | M20: 0 | N20: 0 | O20: 0 | P20: 0 | Q20: 0 | R20: 0 | S20: 0 | T20: 0 | CV20: 114.1104047 | CW20: 140.8897906 | CX20: 9.366666666 | CY20: 0.1 | CZ20: 30 | DA20: -3.334723082 | DB20: 1.102831752 | DC20: 0.934689637 | DD20: 3.555256794
A21: 2008 | B21: 1900-05-28 | C21: 3 | D21: Máxima | E21: Verdasca | F21: Externa | G21: 1 | H21: 16 | I21: 153 | J21: 22.28 | L21: 114.1104047 | M21: 140.8897906 | N21: 9.366666666 | O21: 0.1 | P21: 30 | Q21: -3.334723082 | R21: 1.102831752 | S21: 0.934689637 | T21: 3.555256794 | CV21: 0 | CW21: 0 | CX21: 0 | CY21: 0 | CZ21: 0 | DA21: 0 | DB21: 0 | DC21: 0 | DD21: 0
A22: 2008 | B22: 1900-05-28 | C22: 3 | D22: Máxima | E22: Verdasca | F22: Externa | G22: 2 | H22: 9.77 | I22: 55.7 | J22: 21.85 | L22: 0 | M22: 0 | N22: 0 | O22: 0 | P22: 0 | Q22: 0 | R22: 0 | S22: 0 | T22: 0 | CV22: 0 | CW22: 0 | CX22: 0 | CY22: 0 | CZ22: 0 | DA22: 0 | DB22: 0 | DC22: 0 | DD22: 0
A23: 2008 | B23: 1900-05-28 | C23: 3 | D23: Máxima | E23: Verdasca | F23: Externa | G23: 3 | H23: 6.33 | I23: 55.7 | J23: 21.87 | L23: 0 | M23: 0 | N23: 0 | O23: 0 | P23: 0 | Q23: 0 | R23: 0 | S23: 0 | T23: 0 | CV23: 0 | CW23: 0 | CX23: 0 | CY23: 0 | CZ23: 0 | DA23: 0 | DB23: 0 | DC23: 0 | DD23: 0
A24: 2008 | B24: 1900-05-28 | C24: 3 | D24: Máxima | E24: Verdasca | F24: Externa | G24: 4 | H24: 1.96 | I24: 39 | J24: 21.92 | L24: 0 | M24: 0 | N24: 0 | O24: 0 | P24: 0 | Q24: 0 | R24: 0 | S24: 0 | T24: 0 | CV24: 0 | CW24: 0 | CX24: 0 | CY24: 0 | CZ24: 0 | DA24: 0 | DB24: 0 | DC24: 0 | DD24: 0
A25: 2008 | B25: 1900-05-28 | C25: 3 | D25: Máxima | E25: Verdasca | F25: Externa | G25: 5 | H25: 16.2 | I25: 82.4 | J25: 21.98 | L25: 0 | M25: 0 | N25: 0 | O25: 0 | P25: 0 | Q25: 0 | R25: 0 | S25: 0 | T25: 0 | CV25: 0 | CW25: 0 | CX25: 0 | CY25: 0 | CZ25: 0 | DA25: 0 | DB25: 0 | DC25: 0 | DD25: 0
A26: 2008 | B26: 1900-05-28 | C26: 3 | D26: Máxima | E26: Verdasca | F26: Externa | G26: 6 | H26: 24.3 | I26: 223 | J26: 21.93 | L26: 0 | M26: 0 | N26: 0 | O26: 0 | P26: 0 | Q26: 0 | R26: 0 | S26: 0 | T26: 0 | CV26: 0 | CW26: 0 | CX26: 0 | CY26: 0 | CZ26: 0 | DA26: 0 | DB26: 0 | DC26: 0 | DD26: 0
A27: 2008 | B27: 1900-05-28 | C27: 3 | D27: Máxima | E27: Verdasca | F27: Externa | G27: 7 | H27: 27.1 | I27: 472 | J27: 21.92 | L27: 0 | M27: 0 | N27: 0 | O27: 0 | P27: 0 | Q27: 0 | R27: 0 | S27: 0 | T27: 0 | CV27: 0 | CW27: 0 | CX27: 0 | CY27: 0 | CZ27: 0 | DA27: 0 | DB27: 0 | DC27: 0 | DD27: 0
A28: 2008 | B28: 1900-05-28 | C28: 3 | D28: Máxima | E28: Verdasca | F28: Externa | G28: 8 | H28: 2.75E+01 | I28: 962 | J28: 21.79 | L28: 0 | M28: 0 | N28: 0 | O28: 0 | P28: 0 | Q28: 0 | R28: 0 | S28: 0 | T28: 0 | CV28: 0 | CW28: 0 | CX28: 0 | CY28: 0 | CZ28: 0 | DA28: 0 | DB28: 0 | DC28: 0 | DD28: 0
A29: 2008 | B29: 1900-05-28 | C29: 3 | D29: Máxima | E29: Verdasca | F29: Externa | G29: 9 | H29: 2.85E+01 | I29: 1490 | J29: 21.82 | L29: 0 | M29: 0 | N29: 0 | O29: 0 | P29: 0 | Q29: 0 | R29: 0 | S29: 0 | T29: 0 | CV29: 87.82561302 | CW29: 143.4192238 | CX29: 10.47595907 | CY29: 0.4778772092 | CZ29: 30 | DA29: 0.01475352752 | DB29: 0.9992378939 | DC29: 0.9992378939 | DD29: 0.289809514
A30: 2008 | B30: 1900-05-28 | C30: 3 | D30: Máxima | E30: Verdasca | F30: Interna | G30: 1 | H30: 18.1 | I30: 222 | J30: 25.76 | L30: 87.82561302 | M30: 143.4192238 | N30: 10.47595907 | O30: 0.4778772092 | P30: 30 | Q30: 0.01475352752 | R30: 0.9992378939 | S30: 0.9992378939 | T30: 0.289809514 | CV30: 0 | CW30: 0 | CX30: 0 | CY30: 0 | CZ30: 0 | DA30: 0 | DB30: 0 | DC30: 0 | DD30: 0
A31: 2008 | B31: 1900-05-28 | C31: 3 | D31: Máxima | E31: Verdasca | F31: Interna | G31: 2 | H31: 10.5 | I31: 144 | J31: 25.71 | L31: 0 | M31: 0 | N31: 0 | O31: 0 | P31: 0 | Q31: 0 | R31: 0 | S31: 0 | T31: 0 | CV31: 0 | CW31: 0 | CX31: 0 | CY31: 0 | CZ31: 0 | DA31: 0 | DB31: 0 | DC31: 0 | DD31: 0
A32: 2008 | B32: 1900-05-28 | C32: 3 | D32: Máxima | E32: Verdasca | F32: Interna | G32: 3 | H32: 6.69 | I32: 102 | J32: 25.76 | L32: 0 | M32: 0 | N32: 0 | O32: 0 | P32: 0 | Q32: 0 | R32: 0 | S32: 0 | T32: 0 | CV32: 0 | CW32: 0 | CX32: 0 | CY32: 0 | CZ32: 0 | DA32: 0 | DB32: 0 | DC32: 0 | DD32: 0
A33: 2008 | B33: 1900-05-28 | C33: 3 | D33: Máxima | E33: Verdasca | F33: Interna | G33: 4 | H33: 1.74 | I33: 55.5 | J33: 25.78 | L33: 0 | M33: 0 | N33: 0 | O33: 0 | P33: 0 | Q33: 0 | R33: 0 | S33: 0 | T33: 0 | CV33: 0 | CW33: 0 | CX33: 0 | CY33: 0 | CZ33: 0 | DA33: 0 | DB33: 0 | DC33: 0 | DD33: 0
A34: 2008 | B34: 1900-05-28 | C34: 3 | D34: Máxima | E34: Verdasca | F34: Interna | G34: 5 | H34: 18.3 | I34: 236 | J34: 25.69 | L34: 0 | M34: 0 | N34: 0 | O34: 0 | P34: 0 | Q34: 0 | R34: 0 | S34: 0 | T34: 0 | CV34: 0 | CW34: 0 | CX34: 0 | CY34: 0 | CZ34: 0 | DA34: 0 | DB34: 0 | DC34: 0 | DD34: 0
A35: 2008 | B35: 1900-05-28 | C35: 3 | D35: Máxima | E35: Verdasca | F35: Interna | G35: 6 | H35: 27.1 | I35: 413 | J35: 25.46 | L35: 0 | M35: 0 | N35: 0 | O35: 0 | P35: 0 | Q35: 0 | R35: 0 | S35: 0 | T35: 0 | CV35: 0 | CW35: 0 | CX35: 0 | CY35: 0 | CZ35: 0 | DA35: 0 | DB35: 0 | DC35: 0 | DD35: 0
A36: 2008 | B36: 1900-05-28 | C36: 3 | D36: Máxima | E36: Verdasca | F36: Interna | G36: 7 | H36: 29.9 | I36: 686 | J36: 25.12 | L36: 0 | M36: 0 | N36: 0 | O36: 0 | P36: 0 | Q36: 0 | R36: 0 | S36: 0 | T36: 0 | CV36: 0 | CW36: 0 | CX36: 0 | CY36: 0 | CZ36: 0 | DA36: 0 | DB36: 0 | DC36: 0 | DD36: 0
A37: 2008 | B37: 1900-05-28 | C37: 3 | D37: Máxima | E37: Verdasca | F37: Interna | G37: 8 | H37: 3.09E+01 | I37: 1250 | J37: 25.22 | L37: 0 | M37: 0 | N37: 0 | O37: 0 | P37: 0 | Q37: 0 | R37: 0 | S37: 0 | T37: 0 | CV37: 0 | CW37: 0 | CX37: 0 | CY37: 0 | CZ37: 0 | DA37: 0 | DB37: 0 | DC37: 0 | DD37: 0
A38: 2008 | B38: 1900-05-28 | C38: 3 | D38: Máxima | E38: Verdasca | F38: Interna | G38: 9 | H38: 3.10E+01 | I38: 1740 | J38: 25.32 | L38: 0 | M38: 0 | N38: 0 | O38: 0 | P38: 0 | Q38: 0 | R38: 0 | S38: 0 | T38: 0 | CV38: 41.48351641 | CW38: 102.375719 | CX38: 8.566666667 | CY38: 0.1 | CZ38: 30 | DA38: 0.4029093453 | DB38: 0.8923871266 | DC38: 0.9415569707 | DD38: 1.965086291
A39: 2008 | B39: 1900-05-28 | C39: 7 | D39: Vertical | E39: Verdasca | F39: Externa | G39: 1 | H39: 9.18 | I39: 221 | J39: 22.27 | L39: 41.48351641 | M39: 102.375719 | N39: 8.566666667 | O39: 0.1 | P39: 30 | Q39: 0.4029093453 | R39: 0.8923871266 | S39: 0.9415569707 | T39: 1.965086291 | CV39: 0 | CW39: 0 | CX39: 0 | CY39: 0 | CZ39: 0 | DA39: 0 | DB39: 0 | DC39: 0 | DD39: 0
A40: 2008 | B40: 1900-05-28 | C40: 7 | D40: Vertical | E40: Verdasca | F40: Externa | G40: 2 | H40: 5.61 | I40: 135 | J40: 22.18 | L40: 0 | M40: 0 | N40: 0 | O40: 0 | P40: 0 | Q40: 0 | R40: 0 | S40: 0 | T40: 0 | CV40: 0 | CW40: 0 | CX40: 0 | CY40: 0 | CZ40: 0 | DA40: 0 | DB40: 0 | DC40: 0 | DD40: 0
A41: 2008 | B41: 1900-05-28 | C41: 7 | D41: Vertical | E41: Verdasca | F41: Externa | G41: 3 | H41: 3.61 | I41: 94.2 | J41: 22.05 | L41: 0 | M41: 0 | N41: 0 | O41: 0 | P41: 0 | Q41: 0 | R41: 0 | S41: 0 | T41: 0 | CV41: 0 | CW41: 0 | CX41: 0 | CY41: 0 | CZ41: 0 | DA41: 0 | DB41: 0 | DC41: 0 | DD41: 0
A42: 2008 | B42: 1900-05-28 | C42: 7 | D42: Vertical | E42: Verdasca | F42: Externa | G42: 4 | H42: 1.12 | I42: 51.8 | J42: 21.88 | L42: 0 | M42: 0 | N42: 0 | O42: 0 | P42: 0 | Q42: 0 | R42: 0 | S42: 0 | T42: 0 | CV42: 0 | CW42: 0 | CX42: 0 | CY42: 0 | CZ42: 0 | DA42: 0 | DB42: 0 | DC42: 0 | DD42: 0
A43: 2008 | B43: 1900-05-28 | C43: 7 | D43: Vertical | E43: Verdasca | F43: Externa | G43: 5 | H43: 10.9 | I43: 113 | J43: 21.76 | L43: 0 | M43: 0 | N43: 0 | O43: 0 | P43: 0 | Q43: 0 | R43: 0 | S43: 0 | T43: 0 | CV43: 0 | CW43: 0 | CX43: 0 | CY43: 0 | CZ43: 0 | DA43: 0 | DB43: 0 | DC43: 0 | DD43: 0
A44: 2008 | B44: 1900-05-28 | C44: 7 | D44: Vertical | E44: Verdasca | F44: Externa | G44: 6 | H44: 17.7 | I44: 294 | J44: 21.78 | L44: 0 | M44: 0 | N44: 0 | O44: 0 | P44: 0 | Q44: 0 | R44: 0 | S44: 0 | T44: 0 | CV44: 0 | CW44: 0 | CX44: 0 | CY44: 0 | CZ44: 0 | DA44: 0 | DB44: 0 | DC44: 0 | DD44: 0
A45: 2008 | B45: 1900-05-28 | C45: 7 | D45: Vertical | E45: Verdasca | F45: Externa | G45: 7 | H45: 22 | I45: 578 | J45: 21.72 | L45: 0 | M45: 0 | N45: 0 | O45: 0 | P45: 0 | Q45: 0 | R45: 0 | S45: 0 | T45: 0 | CV45: 0 | CW45: 0 | CX45: 0 | CY45: 0 | CZ45: 0 | DA45: 0 | DB45: 0 | DC45: 0 | DD45: 0
A46: 2008 | B46: 1900-05-28 | C46: 7 | D46: Vertical | E46: Verdasca | F46: Externa | G46: 8 | H46: 2.52E+01 | I46: 1150 | J46: 21.6 | L46: 0 | M46: 0 | N46: 0 | O46: 0 | P46: 0 | Q46: 0 | R46: 0 | S46: 0 | T46: 0 | CV46: 0 | CW46: 0 | CX46: 0 | CY46: 0 | CZ46: 0 | DA46: 0 | DB46: 0 | DC46: 0 | DD46: 0
A47: 2008 | B47: 1900-05-28 | C47: 7 | D47: Vertical | E47: Verdasca | F47: Externa | G47: 9 | H47: 2.60E+01 | I47: 1650 | J47: 21.35 | L47: 0 | M47: 0 | N47: 0 | O47: 0 | P47: 0 | Q47: 0 | R47: 0 | S47: 0 | T47: 0 | CV47: 43.76766632 | CW47: 97.70638074 | CX47: 7.672425623 | CY47: 0.6372239143 | CZ47: 14.58223703 | DA47: 0.09467276199 | DB47: 0.9884391923 | DC47: 0.994767214 | DD47: 0.5371220672
A48: 2008 | B48: 1900-05-28 | C48: 7 | D48: Vertical | E48: Verdasca | F48: Interna | G48: 1 | H48: 12.2 | I48: 248 | J48: 20.99 | L48: 43.76766632 | M48: 97.70638074 | N48: 7.672425623 | O48: 0.6372239143 | P48: 14.58223703 | Q48: 0.09467276199 | R48: 0.9884391923 | S48: 0.994767214 | T48: 0.5371220672 | CV48: 0 | CW48: 0 | CX48: 0 | CY48: 0 | CZ48: 0 | DA48: 0 | DB48: 0 | DC48: 0 | DD48: 0
A49: 2008 | B49: 1900-05-28 | C49: 7 | D49: Vertical | E49: Verdasca | F49: Interna | G49: 2 | H49: 7.72 | I49: 152 | J49: 21.18 | L49: 0 | M49: 0 | N49: 0 | O49: 0 | P49: 0 | Q49: 0 | R49: 0 | S49: 0 | T49: 0 | CV49: 0 | CW49: 0 | CX49: 0 | CY49: 0 | CZ49: 0 | DA49: 0 | DB49: 0 | DC49: 0 | DD49: 0
A50: 2008 | B50: 1900-05-28 | C50: 7 | D50: Vertical | E50: Verdasca | F50: Interna | G50: 3 | H50: 4.97 | I50: 106 | J50: 21.25 | L50: 0 | M50: 0 | N50: 0 | O50: 0 | P50: 0 | Q50: 0 | R50: 0 | S50: 0 | T50: 0 | CV50: 0 | CW50: 0 | CX50: 0 | CY50: 0 | CZ50: 0 | DA50: 0 | DB50: 0 | DC50: 0 | DD50: 0
A51: 2008 | B51: 1900-05-28 | C51: 7 | D51: Vertical | E51: Verdasca | F51: Interna | G51: 4 | H51: 1.49 | I51: 55.7 | J51: 21.36 | L51: 0 | M51: 0 | N51: 0 | O51: 0 | P51: 0 | Q51: 0 | R51: 0 | S51: 0 | T51: 0 | CV51: 0 | CW51: 0 | CX51: 0 | CY51: 0 | CZ51: 0 | DA51: 0 | DB51: 0 | DC51: 0 | DD51: 0
A52: 2008 | B52: 1900-05-28 | C52: 7 | D52: Vertical | E52: Verdasca | F52: Interna | G52: 5 | H52: 13.6 | I52: 244 | J52: 21.58 | L52: 0 | M52: 0 | N52: 0 | O52: 0 | P52: 0 | Q52: 0 | R52: 0 | S52: 0 | T52: 0 | CV52: 0 | CW52: 0 | CX52: 0 | CY52: 0 | CZ52: 0 | DA52: 0 | DB52: 0 | DC52: 0 | DD52: 0
A53: 2008 | B53: 1900-05-28 | C53: 7 | D53: Vertical | E53: Verdasca | F53: Interna | G53: 6 | H53: 18.9 | I53: 438 | J53: 21.7 | L53: 0 | M53: 0 | N53: 0 | O53: 0 | P53: 0 | Q53: 0 | R53: 0 | S53: 0 | T53: 0 | CV53: 0 | CW53: 0 | CX53: 0 | CY53: 0 | CZ53: 0 | DA53: 0 | DB53: 0 | DC53: 0 | DD53: 0
A54: 2008 | B54: 1900-05-28 | C54: 7 | D54: Vertical | E54: Verdasca | F54: Interna | G54: 7 | H54: 20.6 | I54: 728 | J54: 21.85 | L54: 0 | M54: 0 | N54: 0 | O54: 0 | P54: 0 | Q54: 0 | R54: 0 | S54: 0 | T54: 0 | CV54: 0 | CW54: 0 | CX54: 0 | CY54: 0 | CZ54: 0 | DA54: 0 | DB54: 0 | DC54: 0 | DD54: 0
A55: 2008 | B55: 1900-05-28 | C55: 7 | D55: Vertical | E55: Verdasca | F55: Interna | G55: 8 | H55: 2.22E+01 | I55: 1300 | J55: 22.1 | L55: 0 | M55: 0 | N55: 0 | O55: 0 | P55: 0 | Q55: 0 | R55: 0 | S55: 0 | T55: 0 | CV55: 0 | CW55: 0 | CX55: 0 | CY55: 0 | CZ55: 0 | DA55: 0 | DB55: 0 | DC55: 0 | DD55: 0
A56: 2008 | B56: 1900-05-28 | C56: 7 | D56: Vertical | E56: Verdasca | F56: Interna | G56: 9 | H56: 2.26E+01 | I56: 1800 | J56: 22.16 | L56: 0 | M56: 0 | N56: 0 | O56: 0 | P56: 0 | Q56: 0 | R56: 0 | S56: 0 | T56: 0 | CV56: 59.89983051 | CW56: 123.2651392 | CX56: 9.183333333 | CY56: 0.1 | CZ56: 30 | DA56: 0.02634000231 | DB56: 0.9973706247 | DC56: 0.9934336158 | DD56: 0.7421176369
A57: 2008 | B57: 1900-05-28 | C57: 10 | D57: Máxima | E57: Verdasca | F57: Externa | G57: 1 | H57: 14.7 | I57: 234 | J57: 22.57 | L57: 59.89983051 | M57: 123.2651392 | N57: 9.183333333 | O57: 0.1 | P57: 30 | Q57: 0.02634000231 | R57: 0.9973706247 | S57: 0.9934336158 | T57: 0.7421176369 | CV57: 0 | CW57: 0 | CX57: 0 | CY57: 0 | CZ57: 0 | DA57: 0 | DB57: 0 | DC57: 0 | DD57: 0
A58: 2008 | B58: 1900-05-28 | C58: 10 | D58: Máxima | E58: Verdasca | F58: Externa | G58: 2 | H58: 9.73 | I58: 142 | J58: 22.69 | L58: 0 | M58: 0 | N58: 0 | O58: 0 | P58: 0 | Q58: 0 | R58: 0 | S58: 0 | T58: 0 | CV58: 0 | CW58: 0 | CX58: 0 | CY58: 0 | CZ58: 0 | DA58: 0 | DB58: 0 | DC58: 0 | DD58: 0
A59: 2008 | B59: 1900-05-28 | C59: 10 | D59: Máxima | E59: Verdasca | F59: Externa | G59: 3 | H59: 6.45 | I59: 97 | J59: 22.62 | L59: 0 | M59: 0 | N59: 0 | O59: 0 | P59: 0 | Q59: 0 | R59: 0 | S59: 0 | T59: 0 | CV59: 0 | CW59: 0 | CX59: 0 | CY59: 0 | CZ59: 0 | DA59: 0 | DB59: 0 | DC59: 0 | DD59: 0
A60: 2008 | B60: 1900-05-28 | C60: 10 | D60: Máxima | E60: Verdasca | F60: Externa | G60: 4 | H60: 1.9 | I60: 53.8 | J60: 22.49 | L60: 0 | M60: 0 | N60: 0 | O60: 0 | P60: 0 | Q60: 0 | R60: 0 | S60: 0 | T60: 0 | CV60: 0 | CW60: 0 | CX60: 0 | CY60: 0 | CZ60: 0 | DA60: 0 | DB60: 0 | DC60: 0 | DD60: 0
A61: 2008 | B61: 1900-05-28 | C61: 10 | D61: Máxima | E61: Verdasca | F61: Externa | G61: 5 | H61: 17.2 | I61: 225 | J61: 22.38 | L61: 0 | M61: 0 | N61: 0 | O61: 0 | P61: 0 | Q61: 0 | R61: 0 | S61: 0 | T61: 0 | CV61: 0 | CW61: 0 | CX61: 0 | CY61: 0 | CZ61: 0 | DA61: 0 | DB61: 0 | DC61: 0 | DD61: 0
A62: 2008 | B62: 1900-05-28 | C62: 10 | D62: Máxima | E62: Verdasca | F62: Externa | G62: 6 | H62: 24.5 | I62: 401 | J62: 22.23 | L62: 0 | M62: 0 | N62: 0 | O62: 0 | P62: 0 | Q62: 0 | R62: 0 | S62: 0 | T62: 0 | CV62: 0 | CW62: 0 | CX62: 0 | CY62: 0 | CZ62: 0 | DA62: 0 | DB62: 0 | DC62: 0 | DD62: 0
A63: 2008 | B63: 1900-05-28 | C63: 10 | D63: Máxima | E63: Verdasca | F63: Externa | G63: 7 | H63: 26 | I63: 681 | J63: 22.14 | L63: 0 | M63: 0 | N63: 0 | O63: 0 | P63: 0 | Q63: 0 | R63: 0 | S63: 0 | T63: 0 | CV63: 0 | CW63: 0 | CX63: 0 | CY63: 0 | CZ63: 0 | DA63: 0 | DB63: 0 | DC63: 0 | DD63: 0
A64: 2008 | B64: 1900-05-28 | C64: 10 | D64: Máxima | E64: Verdasca | F64: Externa | G64: 8 | H64: 2.73E+01 | I64: 1280 | J64: 22.2 | L64: 0 | M64: 0 | N64: 0 | O64: 0 | P64: 0 | Q64: 0 | R64: 0 | S64: 0 | T64: 0 | CV64: 0 | CW64: 0 | CX64: 0 | CY64: 0 | CZ64: 0 | DA64: 0 | DB64: 0 | DC64: 0 | DD64: 0
A65: 2008 | B65: 1900-05-28 | C65: 10 | D65: Máxima | E65: Verdasca | F65: Externa | G65: 9 | H65: 2.76E+01 | I65: 1750 | J65: 22.17 | L65: 0 | M65: 0 | N65: 0 | O65: 0 | P65: 0 | Q65: 0 | R65: 0 | S65: 0 | T65: 0 | CV65: 63.04800501 | CW65: 116.8343676 | CX65: 8.188888889 | CY65: 0.1 | CZ65: 30 | DA65: -0.1310279104 | DB65: 1.005552984 | DC65: 0.9954701627 | DD65: 0.5505645487
A66: 2008 | B66: 1900-05-28 | C66: 10 | D66: Máxima | E66: Verdasca | F66: Interna | G66: 1 | H66: 15.6 | I66: 231 | J66: 22.62 | L66: 63.04800501 | M66: 116.8343676 | N66: 8.188888889 | O66: 0.1 | P66: 30 | Q66: -0.1310279104 | R66: 1.005552984 | S66: 0.9954701627 | T66: 0.5505645487 | CV66: 0 | CW66: 0 | CX66: 0 | CY66: 0 | CZ66: 0 | DA66: 0 | DB66: 0 | DC66: 0 | DD66: 0
A67: 2008 | B67: 1900-05-28 | C67: 10 | D67: Máxima | E67: Verdasca | F67: Interna | G67: 2 | H67: 9.91 | I67: 136 | J67: 22.74 | L67: 0 | M67: 0 | N67: 0 | O67: 0 | P67: 0 | Q67: 0 | R67: 0 | S67: 0 | T67: 0 | CV67: 0 | CW67: 0 | CX67: 0 | CY67: 0 | CZ67: 0 | DA67: 0 | DB67: 0 | DC67: 0 | DD67: 0
A68: 2008 | B68: 1900-05-28 | C68: 10 | D68: Máxima | E68: Verdasca | F68: Interna | G68: 3 | H68: 6.36 | I68: 94.5 | J68: 22.83 | L68: 0 | M68: 0 | N68: 0 | O68: 0 | P68: 0 | Q68: 0 | R68: 0 | S68: 0 | T68: 0 | CV68: 0 | CW68: 0 | CX68: 0 | CY68: 0 | CZ68: 0 | DA68: 0 | DB68: 0 | DC68: 0 | DD68: 0
A69: 2008 | B69: 1900-05-28 | C69: 10 | D69: Máxima | E69: Verdasca | F69: Interna | G69: 4 | H69: 2.01 | I69: 53.6 | J69: 22.99 | L69: 0 | M69: 0 | N69: 0 | O69: 0 | P69: 0 | Q69: 0 | R69: 0 | S69: 0 | T69: 0 | CV69: 0 | CW69: 0 | CX69: 0 | CY69: 0 | CZ69: 0 | DA69: 0 | DB69: 0 | DC69: 0 | DD69: 0
A70: 2008 | B70: 1900-05-28 | C70: 10 | D70: Máxima | E70: Verdasca | F70: Interna | G70: 5 | H70: 16.7 | I70: 224 | J70: 23.14 | L70: 0 | M70: 0 | N70: 0 | O70: 0 | P70: 0 | Q70: 0 | R70: 0 | S70: 0 | T70: 0 | CV70: 0 | CW70: 0 | CX70: 0 | CY70: 0 | CZ70: 0 | DA70: 0 | DB70: 0 | DC70: 0 | DD70: 0
A71: 2008 | B71: 1900-05-28 | C71: 10 | D71: Máxima | E71: Verdasca | F71: Interna | G71: 6 | H71: 22.7 | I71: 415 | J71: 23.22 | L71: 0 | M71: 0 | N71: 0 | O71: 0 | P71: 0 | Q71: 0 | R71: 0 | S71: 0 | T71: 0 | CV71: 0 | CW71: 0 | CX71: 0 | CY71: 0 | CZ71: 0 | DA71: 0 | DB71: 0 | DC71: 0 | DD71: 0
A72: 2008 | B72: 1900-05-28 | C72: 10 | D72: Máxima | E72: Verdasca | F72: Interna | G72: 7 | H72: 24.1 | I72: 700 | J72: 23.39 | L72: 0 | M72: 0 | N72: 0 | O72: 0 | P72: 0 | Q72: 0 | R72: 0 | S72: 0 | T72: 0 | CV72: 0 | CW72: 0 | CX72: 0 | CY72: 0 | CZ72: 0 | DA72: 0 | DB72: 0 | DC72: 0 | DD72: 0
A73: 2008 | B73: 1900-05-28 | C73: 10 | D73: Máxima | E73: Verdasca | F73: Interna | G73: 8 | H73: 2.45E+01 | I73: 1280 | J73: 23.42 | L73: 0 | M73: 0 | N73: 0 | O73: 0 | P73: 0 | Q73: 0 | R73: 0 | S73: 0 | T73: 0 | CV73: 0 | CW73: 0 | CX73: 0 | CY73: 0 | CZ73: 0 | DA73: 0 | DB73: 0 | DC73: 0 | DD73: 0
A74: 2008 | B74: 1900-05-28 | C74: 10 | D74: Máxima | E74: Verdasca | F74: Interna | G74: 9 | H74: 2.48E+01 | I74: 1780 | J74: 23.41 | L74: 0 | M74: 0 | N74: 0 | O74: 0 | P74: 0 | Q74: 0 | R74: 0 | S74: 0 | T74: 0 | CV74: 72.75961995 | CW74: 137.1677194 | CX74: 10.21622721 | CY74: 0.3450868504 | CZ74: 13.99375018 | DA74: 0.007571882157 | DB74: 0.9993758551 | DC74: 0.9991039425 | DD74: 0.3096167897
A75: 2008 | B75: 1900-05-28 | C75: 16 | D75: Máxima | E75: Verdasca | F75: Externa | G75: 1 | H75: 16.4 | I75: 222 | J75: 23.98 | L75: 72.75961995 | M75: 137.1677194 | N75: 10.21622721 | O75: 0.3450868504 | P75: 13.99375018 | Q75: 0.007571882157 | R75: 0.9993758551 | S75: 0.9991039425 | T75: 0.3096167897 | CV75: 0 | CW75: 0 | CX75: 0 | CY75: 0 | CZ75: 0 | DA75: 0 | DB75: 0 | DC75: 0 | DD75: 0
A76: 2008 | B76: 1900-05-28 | C76: 16 | D76: Máxima | E76: Verdasca | F76: Externa | G76: 2 | H76: 9.69 | I76: 135 | J76: 24.06 | L76: 0 | M76: 0 | N76: 0 | O76: 0 | P76: 0 | Q76: 0 | R76: 0 | S76: 0 | T76: 0 | CV76: 0 | CW76: 0 | CX76: 0 | CY76: 0 | CZ76: 0 | DA76: 0 | DB76: 0 | DC76: 0 | DD76: 0
A77: 2008 | B77: 1900-05-28 | C77: 16 | D77: Máxima | E77: Verdasca | F77: Externa | G77: 3 | H77: 6.1 | I77: 94.3 | J77: 24 | L77: 0 | M77: 0 | N77: 0 | O77: 0 | P77: 0 | Q77: 0 | R77: 0 | S77: 0 | T77: 0 | CV77: 0 | CW77: 0 | CX77: 0 | CY77: 0 | CZ77: 0 | DA77: 0 | DB77: 0 | DC77: 0 | DD77: 0
A78: 2008 | B78: 1900-05-28 | C78: 16 | D78: Máxima | E78: Verdasca | F78: Externa | G78: 4 | H78: 1.57 | I78: 56 | J78: 23.94 | L78: 0 | M78: 0 | N78: 0 | O78: 0 | P78: 0 | Q78: 0 | R78: 0 | S78: 0 | T78: 0 | CV78: 0 | CW78: 0 | CX78: 0 | CY78: 0 | CZ78: 0 | DA78: 0 | DB78: 0 | DC78: 0 | DD78: 0
A79: 2008 | B79: 1900-05-28 | C79: 16 | D79: Máxima | E79: Verdasca | F79: Externa | G79: 5 | H79: 16.7 | I79: 229 | J79: 23.68 | L79: 0 | M79: 0 | N79: 0 | O79: 0 | P79: 0 | Q79: 0 | R79: 0 | S79: 0 | T79: 0 | CV79: 0 | CW79: 0 | CX79: 0 | CY79: 0 | CZ79: 0 | DA79: 0 | DB79: 0 | DC79: 0 | DD79: 0
A80: 2008 | B80: 1900-05-28 | C80: 16 | D80: Máxima | E80: Verdasca | F80: Externa | G80: 6 | H80: 25.3 | I80: 389 | J80: 23.55 | L80: 0 | M80: 0 | N80: 0 | O80: 0 | P80: 0 | Q80: 0 | R80: 0 | S80: 0 | T80: 0 | CV80: 0 | CW80: 0 | CX80: 0 | CY80: 0 | CZ80: 0 | DA80: 0 | DB80: 0 | DC80: 0 | DD80: 0
A81: 2008 | B81: 1900-05-28 | C81: 16 | D81: Máxima | E81: Verdasca | F81: Externa | G81: 7 | H81: 29.1 | I81: 642 | J81: 23.45 | L81: 0 | M81: 0 | N81: 0 | O81: 0 | P81: 0 | Q81: 0 | R81: 0 | S81: 0 | T81: 0 | CV81: 0 | CW81: 0 | CX81: 0 | CY81: 0 | CZ81: 0 | DA81: 0 | DB81: 0 | DC81: 0 | DD81: 0
A82: 2008 | B82: 1900-05-28 | C82: 16 | D82: Máxima | E82: Verdasca | F82: Externa | G82: 8 | H82: 3.03E+01 | I82: 1120 | J82: 23.58 | L82: 0 | M82: 0 | N82: 0 | O82: 0 | P82: 0 | Q82: 0 | R82: 0 | S82: 0 | T82: 0 | CV82: 0 | CW82: 0 | CX82: 0 | CY82: 0 | CZ82: 0 | DA82: 0 | DB82: 0 | DC82: 0 | DD82: 0
A83: 2008 | B83: 1900-05-28 | C83: 16 | D83: Máxima | E83: Verdasca | F83: Externa | G83: 9 | H83: 3.03E+01 | I83: 1690 | J83: 23.64 | L83: 0 | M83: 0 | N83: 0 | O83: 0 | P83: 0 | Q83: 0 | R83: 0 | S83: 0 | T83: 0

Sheet Calc_H (hidden)
B1: Outputs | F1: Não proteger esta folha! | I1: Use solver to minimize | Q1: @ 25°C | R1: c | S1: ΔHa (kJ mol-1) | T1: ΔΗd (kJ mol-1) | U1: ΔS (kJ K-1 mol-1)
C2: @ T leaf | D2: @ 25 | G2: Intercept = | H2: =INTERCEPT(O11:O19,C11:C19) -> -0.1537026985 | I2: this sum of squares | M2: R-Squared = | N2: =RSQ(O11:O19,C11:C19) -> 0.9971547516 | P2: Kc (Pa) | Q2: =EXP(R2-(S2/(0.008314*(273.15+25)))) -> 27.24 | R2: 35.98 | S2: 80.99
B3: Vcmax | C3: 188 | D3: =C3/AVERAGE($S$11:$S$19) -> 210 | E3: μmol m-2 s-1 | G3: Slope = | H3: =SLOPE(O11:O19,C11:C19) -> 1.003773691 | P3: Ko (kPa) | Q3: =EXP(R3-(S3/(0.008314*(273.15+25)))) -> 16.58 | R3: 12.38 | S3: 23.72
B4: J | C4: 161 | D4: =C4/AVERAGE($T$11:$T$19) -> 174 | E4: μmol m-2 s-1 | J4: =SUM(K10:M10) -> 2.966 | P4: Γ∗ (Pa) (with O = 21 kPa) | Q4: 3.74 | R4: 11.19 | S4: 24.46
B5: TPU | C5: 10.4 | D5: =C5/AVERAGE($U$11:$U$19) -> 10.9 | E5: μmol m-2 s-1 | P5: Vcmax | Q5: 1.0 | R5: 26.36 | S5: 65.33
B6: Rd* | C6: 1.18 | D6: =C6/AVERAGE($V$11:$V$19) -> 1.28 | E6: μmol m-2 s-1 | P6: J | Q6: 1.0 | R6: 17.71 | S6: 43.90
B7: gm* | C7: 1.58 | D7: =C7/AVERAGE($W$11:$W$19) -> 1.71 | E7: μmol m-2 s-1 Pa-1 | P7: TPU | Q7: =EXP(R7-(S7/(0.008314*(273.15+25))))/(1+EXP(U7*(273.15+25)-T7)/(0.008314*(273.15+25))) -> 1.0 | R7: 21.46 | S7: 53.10 | T7: 201.80 | U7: 0.65
G8: Make no changes here | P8: Rd | Q8: 1.0 | R8: 18.72 | S8: 46.39
B9: Estimate | C9: Enter A | D9: Ci | E9: Tleaf | G9: Calculated | I9: Limitations | L9: Error terms | N9: J | O9: Minimum | P9: gm | Q9: =EXP(R9-(S9/(0.008314*(273.15+25))))/(1+EXP(U9*(273.15+25)-T9)/(0.008314*(273.15+25))) -> 1.0 | R9: 20.01 | S9: 49.60 | T9: 437.40 | U9: 1.40
B10: Limiting | C10: μmol m-2 s-1 | D10: Pa | E10: ºC | G10: Cc | H10: Ac | I10: Aj | J10: At | K10: =SUM(K$11:K$19) -> 1.67 | L10: 0.33 | M10: 0.96 | N10: μmol m-2 s-1 | O10: μmol m-2 s-1 | P10: Kc (Pa) | Q10: Ko (kPa) | R10: Γ∗ (Pa) (with O = 21 kPa) | S10: Vcmax | T10: J | U10: TPU | V10: Rd | W10: gm
B11: 1 | C11: 1.6 | D11: 5.7 | E11: 24 | G11: =$D11-$C11/$C$7 -> 4.66 | H11: =$C$3*(($G11)-$R11)/(($G11)+$P11*(1+O2_/$Q11))-$C$6 -> 2.07 | I11: =$C$4*((($G11)-$R11)/(4*($G11)+8*$R11))-$C$6 -> 2.38 | J11: =3*$C$5-$C$6 -> 29.90 | K11: =IF($B11=1,($H11-$C11)^2,"") -> 0.25 | L11: =IF($B11=2,($I11-$C11)^2,"") ->  | M11: =IF($B11=3,($J11-$C11)^2,"") ->  | N11: =($C11+$C$6)*(4*$G11+8*$R11)/($G11-$R11) -> 124.9 | O11: =MIN($H11:$J11) -> 2.07 | P11: =EXP($R$2-($S$2/(0.008314*(273.15+$E11)))) -> 24.24 | Q11: =EXP($R$3-($S$3/(0.008314*(273.15+$E11)))) -> 16.02 | R11: =EXP($R$4-($S$4/(0.008314*(273.15+$E11)))) -> 3.61 | S11: =EXP($R$5-($S$5/(0.008314*(273.15+$E11)))) -> 0.91 | T11: =EXP($R$6-($S$6/(0.008314*(273.15+$E11)))) -> 0.94 | U11: =EXP($R$7-($S$7/(0.008314*(273.15+$E11))))/(1+EXP($U$7*(273.15+$E11)-$T$7)/(0.008314*(273.15+$E11))) -> 0.96 | V11: =EXP($R$8-($S$8/(0.008314*(273.15+$E11)))) -> 0.94 | W11: =EXP($R$9-($S$9/(0.008314*(273.15+$E11))))/(1+EXP($U$9*(273.15+$E11)-$T$9)/(0.008314*(273.15+$E11))) -> 0.93
B12: 1 | C12: 6.1 | D12: 9.5 | E12: 24 | G12: 5.66 | H12: 5.00 | I12: 5.19 | J12: 29.90 | K12: 1.22 | N12: 184.4 | O12: 5.00 | P12: 24.40 | Q12: 16.05 | R12: 3.62 | S12: 0.91 | T12: 0.94 | U12: 0.97 | V12: 0.94 | W12: 0.94
B13: 1 | C13: 9.7 | D13: 13.6 | E13: 24 | G13: 7.49 | H13: 10.15 | I13: 9.39 | J13: 29.90 | K13: 0.21 | N13: 166.0 | O13: 9.39 | P13: 24.56 | Q13: 16.08 | R13: 3.63 | S13: 0.92 | T13: 0.95 | U13: 0.97 | V13: 0.94 | W13: 0.94
B14: 2 | C14: 16.4 | D14: 22.4 | E14: 24 | G14: 12.02 | H14: 21.98 | I14: 16.43 | J14: 29.90 | L14: 0.00 | N14: 161.1 | O14: 16.43 | P14: 24.35 | Q14: 16.04 | R14: 3.62 | S14: 0.91 | T14: 0.94 | U14: 0.97 | V14: 0.94 | W14: 0.93
B15: 2 | C15: 16.7 | D15: 23.1 | E15: 24 | G15: 12.54 | H15: 23.88 | I15: 17.16 | J15: 29.90 | L15: 0.21 | N15: 157.3 | O15: 17.16 | P15: 23.55 | Q15: 15.89 | R15: 3.58 | S15: 0.89 | T15: 0.92 | U15: 0.94 | V15: 0.92 | W15: 0.92
B16: 2 | C16: 25.3 | D16: 39.3 | E16: 24 | G16: 23.24 | H16: 46.71 | I16: 24.96 | J16: 29.90 | L16: 0.12 | N16: 163.5 | O16: 24.96 | P16: 23.22 | Q16: 15.82 | R16: 3.57 | S16: 0.88 | T16: 0.92 | U16: 0.94 | V16: 0.91 | W16: 0.91
B17: 3 | C17: 29.1 | D17: 64.8 | E17: 23 | G17: 46.39 | H17: 79.44 | I17: 31.12 | J17: 29.90 | M17: 0.64 | N17: 151.3 | O17: 29.90 | P17: 22.96 | Q17: 15.77 | R17: 3.55 | S17: 0.87 | T17: 0.91 | U17: 0.93 | V17: 0.91 | W17: 0.90
B18: 3 | C18: 30.3 | D18: 113.1 | E18: 24 | G18: 93.90 | H18: 113.55 | I18: 34.89 | J18: 29.90 | M18: 0.16 | N18: 140.9 | O18: 29.90 | P18: 23.29 | Q18: 15.84 | R18: 3.57 | S18: 0.88 | T18: 0.92 | U18: 0.94 | V18: 0.91 | W18: 0.91
B19: 3 | C19: 30.3 | D19: 170.7 | E19: 24 | G19: 151.47 | H19: 133.88 | I19: 36.43 | J19: 29.90 | M19: 0.16 | N19: 135.1 | O19: 29.90 | P19: 23.45 | Q19: 15.87 | R19: 3.58 | S19: 0.89 | T19: 0.92 | U19: 0.94 | V19: 0.92 | W19: 0.91
O20: =MIN($H20:$J20) -> 0.00
O21: 0.00
